bitfinex-derivatives/quotes_BTCF0:USTF0_20260315
["timestamp","ask_amount","ask_price","bid_price","bid_amount"]
[1773612382583,0.00810732,72130.0,72117.0,0.041592]
[1773612382986,0.041584,72132.0,72118.0,0.041591]
[1773612383179,0.0016,72145.0,72124.0,0.16705566]
[1773612383382,0.041581,72138.0,72125.0,0.0016]
[1773612383887,0.00810732,72137.0,72125.0,0.0016]
[1773612384291,0.041579,72141.0,72128.0,0.041586]
[1773612384592,0.11619613,72142.0,72126.0,0.041587]
[1773612384996,0.041581,72136.0,72125.0,0.0016]
[1773612385183,0.00810732,72137.0,72125.0,0.043187]
[1773612385383,0.11619613,72147.0,72125.0,0.0016]
[1773612385583,0.041579,72140.0,72128.0,0.041586]
[1773612385983,0.00810732,72139.0,72129.0,0.043185]
[1773612386178,0.00810732,72139.0,72130.0,0.0016]
[1773612388096,0.11619613,72132.0,72110.0,0.12546766]
[1773612388400,0.11619613,72132.0,72111.0,0.0016]
[1773612388590,0.11619613,72132.0,72108.0,0.12546766]
[1773612388782,0.11619613,72132.0,72122.0,0.041589]
[1773612388978,0.11619613,72132.0,72105.0,0.12546766]
[1773612389182,0.08639701,72140.0,72091.0,0.041607]
[1773612389183,0.041585,72130.0,72109.0,0.12546766]
[1773612389685,0.041585,72130.0,72117.0,0.041592]
[1773612389894,0.041586,72129.0,72118.0,0.0016]
[1773612390097,0.00810732,72128.0,72118.0,0.0016]
[1773612390283,0.041587,72127.0,72118.0,0.0016]
[1773612390485,0.11619613,72129.0,72090.0,0.15656824]
[1773612390680,0.08639701,72120.0,72085.0,0.12546766]
[1773612390888,0.11619613,72102.0,72081.0,0.12616132]
[1773612391189,0.14677914,72119.0,72081.0,0.12616132]
[1773612391190,0.11619613,72095.0,72085.0,0.0016]
[1773612391389,0.11619613,72102.0,72081.0,0.00069366]
[1773612391690,0.041601,72102.0,72088.0,0.041609]
[1773612391892,0.0016,72104.0,72089.0,0.0016]
[1773612391893,0.15779813,72101.0,72089.0,0.0016]
[1773612392186,0.11619613,72095.0,72084.0,0.041611]
[1773612392387,0.11619613,72091.0,72081.0,6.6e-07]
[1773612392587,0.11619613,72085.0,72077.0,0.0016]
[1773612392789,0.14517914,72086.0,72053.0,0.041629]
[1773612392991,0.13301482,72066.0,72024.0,0.04105045]
[1773612393293,0.13301482,72066.0,72050.0,0.041631]
[1773612393495,0.13301482,72066.0,72051.0,0.0016]
[1773612393684,0.13301482,72064.0,72052.0,0.0016]
[1773612393889,0.00810732,72065.0,72055.0,0.041628]
[1773612394092,0.13241884,72063.0,72055.0,0.0016]
[1773612394389,0.00010173,72064.0,72055.0,0.0016]
[1773612394390,0.00010173,72064.0,72055.0,0.043228]
[1773612394590,0.00010173,72064.0,72055.0,0.0016]
[1773612395488,0.13171898,72064.0,72050.0,0.041631]
[1773612395796,0.13171898,72064.0,72052.0,0.04163]
[1773612395995,0.13171898,72064.0,72053.0,0.0016]
[1773612396294,0.13171898,72064.0,72055.0,0.041628]
[1773612396700,0.13355637,72069.0,72053.0,0.0016]
[1773612396898,0.13355637,72074.0,72054.0,0.0096884]
[1773612397100,0.13355637,72074.0,72059.0,0.041625]
[1773612397690,0.08639701,72100.0,72059.0,0.12546766]
[1773612397889,0.11619613,72084.0,72068.0,0.04162]
[1773612398091,0.11619613,72084.0,72069.0,0.0016]
[1773612398290,0.11619613,72088.0,72072.0,0.041618]
[1773612398690,0.041612,72084.0,72065.0,0.041622]
[1773612398890,0.041612,72084.0,72051.0,0.12546766]
[1773612398891,0.11627758,72083.0,72067.0,0.041621]
[1773612399084,0.11627758,72083.0,72068.0,0.0016]
[1773612399985,0.11727758,72083.0,72068.0,0.0016]
[1773612400388,0.11727758,72083.0,72068.0,0.04322]
[1773612400784,0.11727758,72083.0,72070.0,0.041619]
[1773612401191,0.00108145,72083.0,72068.0,0.0016]
[1773612401494,8.145e-05,72083.0,72068.0,0.0016]
[1773612401697,0.11727758,72083.0,72071.0,0.041619]
[1773612402100,0.11727758,72083.0,72073.0,0.041618]
[1773612402395,0.11727758,72083.0,72069.0,0.0016]
[1773612402906,0.11727758,72083.0,72075.0,0.041617]
[1773612403199,0.11619613,72088.0,72076.0,0.041615]
[1773612403408,0.001,72083.0,72077.0,0.0016]
[1773612403907,0.11619613,72088.0,72077.0,0.0016]
[1773612405305,0.11619613,72088.0,72077.0,0.043215]
[1773612405506,0.11719613,72088.0,72077.0,0.0016]
[1773612405713,0.041601,72103.0,72078.0,0.12546766]
[1773612406002,0.041601,72102.0,72089.0,0.041608]
[1773612406200,0.15779813,72101.0,72090.0,0.0016]
[1773612406396,0.15779813,72101.0,72088.0,0.0016]
[1773612406791,0.15779813,72101.0,72088.0,0.043209]
[1773612406995,0.15779813,72101.0,72088.0,0.0016]
[1773612407197,0.15779813,72101.0,72088.0,0.043209]
[1773612407794,0.15779813,72101.0,72059.0,0.041625]
[1773612407795,0.041607,72092.0,72083.0,0.0016]
[1773612408005,0.11619613,72101.0,72082.0,0.0016]
[1773612408206,0.11619613,72101.0,72078.0,0.12546766]
[1773612408207,0.0016,72100.0,72083.0,0.0016]
[1773612408509,0.11619613,72099.0,72083.0,0.0016]
[1773612408992,0.11619613,72095.0,72083.0,0.0016]
[1773612409202,0.11619613,72095.0,72086.0,0.04161]
[1773612409504,0.11619613,72095.0,72072.0,0.12546766]
[1773612409505,0.11619613,72091.0,72081.0,0.041613]
[1773612410113,0.11619613,72091.0,72082.0,0.0016]
[1773612410807,0.11619613,72091.0,72064.0,0.041623]
[1773612411003,0.11619613,72091.0,72081.0,0.041613]
[1773612411202,0.11619613,72091.0,72082.0,0.0016]
[1773612411710,0.11619613,72091.0,72083.0,0.041612]
[1773612412314,0.11619613,72091.0,72083.0,0.043212]
[1773612412610,0.11619613,72091.0,72083.0,0.041612]
[1773612412812,0.11619613,72091.0,72081.0,0.0016]
[1773612413317,0.13710849,72090.0,72081.0,0.0016]
[1773612414410,0.0016,72100.0,72045.0,0.041634]
[1773612414411,0.13710849,72082.0,72071.0,0.0016]
[1773612414609,0.13710849,72082.0,72068.0,0.04162]
[1773612414800,0.041613,72082.0,72068.0,0.04322]
[1773612415007,0.041613,72082.0,72045.0,0.041634]
[1773612415008,0.13710849,72079.0,72048.0,0.1391434]
[1773612415196,0.0016,72084.0,72043.0,0.22002507]
[1773612415197,0.13710849,72070.0,72044.0,0.1391434]
[1773612415403,0.13710849,72066.0,72060.0,0.041625]
[1773612415602,0.13710849,72066.0,72058.0,0.041626]
[1773612415807,0.13710849,72066.0,72053.0,0.0016]
[1773612416004,0.13710849,72066.0,72056.0,0.041627]
[1773612416205,0.13710849,72064.0,72053.0,0.0016]
[1773612416623,0.13710849,72064.0,72054.0,0.041628]
[1773612416917,0.13710849,72064.0,72049.0,0.0016]
[1773612417111,0.13870849,72064.0,72031.0,0.1391434]
[1773612417304,0.13710849,72060.0,72049.0,0.041631]
[1773612417504,0.13710849,72060.0,72048.0,0.041632]
[1773612418015,0.13710849,72060.0,72046.0,0.00156]
[1773612418016,0.041626,72060.0,72046.0,0.043193]
[1773612418314,0.13710849,72059.0,72050.0,0.041631]
[1773612418708,0.13710849,72057.0,72046.0,0.043193]
[1773612418911,0.13710849,72057.0,72040.0,0.00156]
[1773612419307,0.13710849,72067.0,72044.0,0.1391434]
[1773612419509,0.22861271,72066.0,72055.0,0.041628]
[1773612419712,0.13710849,72064.0,72056.0,0.00156]
[1773612420411,0.36509115,72063.0,72056.0,0.00156]
[1773612420719,0.22798266,72062.0,72056.0,0.00156]
[1773612420911,0.13710849,72061.0,72052.0,0.00156]
[1773612421606,0.13710849,72055.0,72046.0,0.00156]
[1773612422015,0.13710849,72055.0,72046.0,0.043193]
[1773612422213,0.13710849,72061.0,72049.0,0.041631]
[1773612422426,0.22800157,72060.0,72049.0,0.041631]
[1773612422622,0.13710849,72061.0,72049.0,0.041631]
[1773612422819,0.82742796,72151.0,72048.0,0.041632]
[1773612422820,0.40974957,72095.0,72048.0,0.041632]
[1773612423127,0.00156,72094.0,72051.0,0.1391434]
[1773612423310,0.041611,72085.0,72070.0,0.041619]
[1773612423618,0.04161,72086.0,72072.0,0.041618]
[1773612423823,0.041611,72085.0,72072.0,0.041618]
[1773612424008,0.001,72095.0,72077.0,0.1391434]
[1773612424319,0.55492871,72119.0,72071.0,0.00156]
[1773612424320,0.13710849,72114.0,72091.0,0.041607]
[1773612424526,0.13710849,72114.0,72093.0,0.041606]
[1773612424820,0.13710849,72112.0,72094.0,0.00156]
[1773612425121,0.13710849,72101.0,72089.0,0.00156]
[1773612425320,0.13710849,72101.0,72090.0,0.00156]
[1773612425530,0.041606,72100.0,72090.0,0.00156]
[1773612425715,0.13710849,72099.0,72090.0,0.00156]
[1773612427716,0.13710849,72104.0,72090.0,0.043168]
[1773612427913,0.13710849,72104.0,72090.0,0.00156]
[1773612428218,0.17870849,72104.0,72090.0,0.043168]
[1773612428407,0.17871249,72098.0,72066.0,0.1391434]
[1773612428610,0.13710849,72097.0,72074.0,0.1391434]
[1773612429108,0.13710849,72097.0,72068.0,0.1391434]
[1773612429319,0.00156,72106.0,72084.0,0.041611]
[1773612429320,0.041606,72096.0,72084.0,0.041611]
[1773612429514,0.041601,72103.0,72088.0,0.041609]
[1773612429709,0.17871049,72101.0,72089.0,0.00156]
[1773612429923,0.17871049,72101.0,72086.0,0.04161]
[1773612429924,0.13710849,72100.0,72090.0,0.00156]
[1773612430125,0.13710849,72096.0,72064.0,0.1391434]
[1773612430311,0.13710849,72094.0,72067.0,0.1391434]
[1773612430511,0.13710849,72089.0,72066.0,0.1391434]
[1773612430713,0.13710849,72089.0,72079.0,0.041614]
[1773612430916,0.13710849,72089.0,72080.0,0.00156]
[1773612431616,0.13710849,72089.0,72081.0,0.00156]
[1773612431834,0.041606,72088.0,72081.0,0.00156]
[1773612432324,0.13710849,72087.0,72066.0,0.1391434]
[1773612432523,0.041611,72085.0,72067.0,0.00156]
[1773612432719,0.13710849,72080.0,72068.0,0.00156]
[1773612432912,0.13710849,72080.0,72068.0,0.04318]
[1773612433926,0.13710849,72080.0,72069.0,0.04162]
[1773612434312,0.13710849,72080.0,72068.0,0.00156]
[1773612434514,0.13710849,72079.0,72068.0,0.00156]
[1773612434716,0.13710849,72079.0,72068.0,0.043181]
[1773612435426,0.13710849,72079.0,72068.0,0.00156]
[1773612435924,0.041615,72078.0,72068.0,0.00156]
[1773612436126,0.13710849,72079.0,72068.0,0.00156]
[1773612436325,0.13710849,72079.0,72050.0,0.4425997]
[1773612436326,0.041606,72078.0,72050.0,0.4425997]
[1773612436625,0.13710849,72074.0,72062.0,0.041624]
[1773612437117,0.041606,72073.0,72057.0,0.00156]
[1773612437311,0.13710849,72072.0,72068.0,0.001]
[1773612437520,0.13710849,72078.0,72068.0,0.001]
[1773612437718,0.13710849,72088.0,72068.0,0.001]
[1773612438018,0.041612,72083.0,72070.0,0.041619]
[1773612438719,0.1283347,72110.0,72071.0,0.1407034]
[1773612439022,0.13710849,72100.0,72073.0,0.1391434]
[1773612439220,0.041597,72110.0,72073.0,0.1391434]
[1773612439221,0.041607,72092.0,72073.0,0.1391434]
[1773612439619,0.041607,72092.0,72080.0,0.041613]
[1773612439818,0.13710849,72096.0,72080.0,0.00156]
[1773612440017,0.041607,72092.0,72080.0,0.00156]
[1773612440220,0.13710849,72091.0,72080.0,0.00156]
[1773612440531,0.041608,72090.0,72080.0,0.00156]
[1773612440923,0.17871649,72090.0,72080.0,0.00156]
[1773612441524,0.13710849,72089.0,72055.0,0.1391434]
[1773612441724,0.00156,72092.0,72073.0,0.041617]
[1773612441725,0.13710849,72082.0,72073.0,0.041617]
[1773612442030,0.13710849,72082.0,72074.0,0.00156]
[1773612442423,0.13352999,72081.0,72074.0,0.00156]
[1773612444625,0.13352999,72085.0,72074.0,0.00156]
[1773612444933,0.17514099,72085.0,72074.0,0.00156]
[1773612445830,0.041611,72085.0,72074.0,0.00156]
[1773612446129,0.13352999,72084.0,72074.0,0.00156]
[1773612447325,0.13352999,72076.0,72055.0,0.13621995]
[1773612447632,0.13352999,72076.0,72056.0,0.00156]
[1773612447929,0.13352999,72076.0,72065.0,0.041622]
[1773612448128,0.00156,72084.0,72042.0,0.13621995]
[1773612448129,0.041623,72064.0,72042.0,0.13621995]
[1773612448318,0.13352999,72066.0,72047.0,0.13621995]
[1773612448519,0.13352999,72081.0,72058.0,0.041626]
[1773612448720,0.04162,72070.0,72059.0,0.00156]
[1773612449022,0.13352999,72065.0,72053.0,0.041629]
[1773612449221,0.17515299,72065.0,72054.0,0.043188]
[1773612449429,0.17514999,72069.0,72055.0,0.00156]
[1773612449629,0.13352999,72068.0,72056.0,0.00156]
[1773612449826,0.041622,72066.0,72053.0,0.041629]
[1773612450027,0.13352999,72072.0,72054.0,0.00156]
[1773612450227,0.13352999,72072.0,72059.0,0.041626]
[1773612450431,0.13352999,72072.0,72060.0,0.00156]
[1773612450635,0.041625,72061.0,72059.0,0.00156]
[1773612450833,0.13352999,72058.0,72054.0,0.00156]
[1773612451128,0.13352999,72080.0,72061.0,0.041624]
[1773612451325,0.041617,72074.0,72062.0,0.00156]
[1773612451534,0.041607,72092.0,72042.0,0.041636]
[1773612451535,0.13352999,72080.0,72068.0,0.04162]
[1773612451722,0.00156,72087.0,72068.0,0.00156]
[1773612451921,0.13352999,72065.0,72056.0,0.00156]
[1773612452326,0.13352999,72065.0,72057.0,0.00156]
[1773612452533,0.13352999,72065.0,72058.0,0.00156]
[1773612452829,0.00156,72076.0,72056.0,0.00156]
[1773612452830,0.13352999,72061.0,72056.0,0.00156]
[1773612453223,0.00156,72076.0,72046.0,0.041633]
[1773612453224,0.13352999,72075.0,72046.0,0.041633]
[1773612453428,0.13352999,72056.0,72047.0,0.043193]
[1773612453627,0.13352999,72056.0,72045.0,0.00156]
[1773612453839,0.13352999,72056.0,72046.0,0.00156]
[1773612453840,0.13352999,72055.0,72046.0,0.00156]
[1773612454137,0.17515899,72055.0,72047.0,0.00156]
[1773612454435,0.13352999,72053.0,72048.0,0.00156]
[1773612454929,0.04163,72051.0,72037.0,0.041638]
[1773612455137,0.04163,72051.0,72020.0,0.0867377]
[1773612455138,0.13352999,72047.0,72036.0,0.00156]
[1773612455339,0.04163,72052.0,72038.0,0.036638]
[1773612455522,0.13352999,72048.0,72036.0,0.00156]
[1773612455718,0.13352999,72048.0,72037.0,0.00156]
[1773612455924,0.00156,72058.0,72038.0,0.043198]
[1773612455925,0.13352999,72057.0,72038.0,0.043198]
[1773612456143,0.041629,72053.0,72039.0,0.043197]
[1773612456636,0.13352999,72052.0,72039.0,0.043197]
[1773612457627,0.13352999,72052.0,72039.0,0.00156]
[1773612457834,0.13352999,72059.0,72039.0,0.00156]
[1773612458134,0.041628,72056.0,72039.0,0.00156]
[1773612458327,0.041625,72062.0,72050.0,0.041631]
[1773612458736,0.041625,72062.0,72048.0,0.041632]
[1773612458936,0.041625,72062.0,72049.0,0.00156]
[1773612459134,0.00687,72077.0,72049.0,0.00156]
[1773612459135,0.00687,72077.0,72049.0,0.13777995]
[1773612459323,0.041618,72073.0,72060.0,0.041625]
[1773612459522,0.041619,72072.0,72061.0,0.00156]
[1773612459723,0.00687,72077.0,72062.0,0.00156]
[1773612460032,0.03460519,72099.0,72037.0,0.02191]
[1773612460033,0.13352999,72098.0,72065.0,0.13621995]
[1773612460239,0.13352999,72096.0,72070.0,0.13621995]
[1773612460442,0.041607,72092.0,72076.0,0.041615]
[1773612460647,0.0867377,72110.0,72075.0,0.00156]
[1773612460648,0.041611,72085.0,72075.0,0.00156]
[1773612460939,0.13352999,72094.0,72079.0,0.041614]
[1773612461138,0.20527564,72093.0,72080.0,0.00156]
[1773612461338,0.13352999,72094.0,72080.0,0.00156]
[1773612461537,0.20528221,72093.0,72080.0,0.043173]
[1773612461839,0.13352999,72094.0,72080.0,0.043173]
[1773612462034,0.041607,72093.0,72080.0,0.00156]
[1773612462239,0.13352999,72094.0,72080.0,0.00156]
[1773612462541,0.001,72092.0,72080.0,0.00156]
[1773612462939,0.13352999,72092.0,72080.0,0.00156]
[1773612463346,0.17513699,72091.0,72080.0,0.00156]
[1773612463531,0.13352999,72090.0,72080.0,0.00156]
[1773612465451,0.13352999,72090.0,72077.0,0.041615]
[1773612465629,0.13352999,72095.0,72075.0,0.00156]
[1773612465941,0.13352999,72086.0,72073.0,0.041617]
[1773612466135,0.13352999,72086.0,72074.0,0.00156]
[1773612467046,0.041609,72088.0,72074.0,0.043177]
[1773612467347,0.13352999,72087.0,72074.0,0.043177]
[1773612467841,0.13352999,72083.0,72070.0,0.041619]
[1773612468241,0.17513899,72088.0,72074.0,0.041617]
[1773612468448,0.17513899,72088.0,72072.0,0.041618]
[1773612468449,0.13352999,72088.0,72072.0,0.041618]
[1773612468630,0.13352999,72088.0,72071.0,0.00156]
[1773612468836,0.041609,72089.0,72075.0,0.041616]
[1773612469043,0.041609,72089.0,72071.0,0.00156]
[1773612469431,0.13352999,72086.0,72073.0,0.041617]
[1773612469634,0.13352999,72086.0,72075.0,0.041616]
[1773612469842,0.13352999,72086.0,72071.0,0.00156]
[1773612470046,0.041609,72088.0,72071.0,0.00156]
[1773612470246,0.041609,72088.0,72071.0,0.13777995]
[1773612470450,0.13352999,72094.0,72071.0,0.13777995]
[1773612470649,0.041607,72093.0,72073.0,0.13621995]
[1773612471248,0.041607,72092.0,72073.0,0.13621995]
[1773612471952,0.041599,72106.0,72071.0,0.00156]
[1773612472248,0.13920782,72085.0,72071.0,0.00156]
[1773612473044,0.13673521,72084.0,72071.0,0.00156]
[1773612480845,0.50156,72088.0,72059.0,0.00156]
[1773612480846,0.13673521,72082.0,72059.0,0.00156]
[1773612481054,0.13673521,72082.0,72060.0,0.00156]
[1773612481245,0.13673521,72082.0,72061.0,0.00156]
[1773612481444,0.13673521,72080.0,72033.0,0.30536]
[1773612481649,0.5,72088.0,72020.0,0.041648]
[1773612481650,0.13673521,72065.0,72035.0,0.1334144]
[1773612481836,0.13673521,72065.0,72020.0,0.12445682]
[1773612481837,0.041626,72060.0,72041.0,0.1750504]
[1773612482040,0.13673521,72058.0,72040.0,0.00156]
[1773612482248,0.13673521,72064.0,72040.0,0.00156]
[1773612482558,0.13673521,72059.0,72040.0,0.00156]
[1773612482852,0.13673521,72057.0,72041.0,0.00156]
[1773612483241,0.00156,72065.0,72041.0,0.00156]
[1773612483449,0.13673521,72062.0,72009.0,0.1334144]
[1773612483642,0.13673521,72041.0,72021.0,0.041647]
[1773612483946,0.17818707,72052.0,72023.0,0.1334144]
[1773612483947,0.041634,72045.0,72023.0,0.1334144]
[1773612484140,0.041635,72044.0,72025.0,0.041645]
[1773612484446,0.13673521,72040.0,72022.0,0.043207]
[1773612484652,0.17837221,72040.0,72022.0,0.00156]
[1773612484955,0.13673521,72039.0,72022.0,0.00156]
[1773612485455,0.13673521,72059.0,72026.0,0.1334144]
[1773612485649,0.0073,72056.0,72040.0,0.041636]
[1773612485850,0.0073,72056.0,72041.0,0.00156]
[1773612486255,0.14403521,72056.0,72041.0,0.00156]
[1773612487042,0.13673521,72046.0,72042.0,0.00156]
[1773612487746,0.13673521,72046.0,72043.0,0.00156]
[1773612487957,0.13673521,72046.0,72044.0,0.00156]
[1773612488464,0.041629,72054.0,72045.0,0.00156]
[1773612488755,0.13673521,72049.0,72040.0,0.00156]
[1773612489758,0.13673521,72044.0,72019.0,0.1334144]
[1773612489949,0.13673521,72040.0,72022.0,0.041647]
[1773612490149,0.13673521,72040.0,72026.0,0.041645]
[1773612490350,0.13673521,72034.0,72027.0,0.00156]
[1773612490663,0.13673521,72034.0,72028.0,0.00156]
[1773612490959,0.041636,72041.0,72029.0,0.00156]
[1773612491160,0.041635,72043.0,72029.0,0.00156]
[1773612491362,0.13673521,72029.0,72001.0,0.00459497]
[1773612491561,0.13673521,72023.0,72012.0,0.00156]
[1773612491861,0.13673521,72023.0,72014.0,0.00156]
[1773612492055,0.00156,72037.0,72001.0,0.00459497]
[1773612492056,0.13673521,72021.0,72001.0,0.00459497]
[1773612492263,0.13673521,72020.0,72008.0,0.00156]
[1773612492454,0.13673521,72018.0,72008.0,0.00156]
[1773612493263,0.13673521,72018.0,72001.0,0.00459497]
[1773612493450,0.13673521,72013.0,72002.0,0.00156]
[1773612493871,0.13689205,72019.0,72008.0,0.001]
[1773612494067,0.13689205,72019.0,72002.0,0.00156]
[1773612494251,0.13689205,72019.0,72003.0,0.041658]
[1773612495563,0.00015684,72019.0,72002.0,0.1349744]
[1773612495761,0.00015684,72019.0,72005.0,0.041656]
[1773612495960,0.13673521,72035.0,72016.0,0.04165]
[1773612496259,0.13673521,72031.0,72017.0,0.00156]
[1773612496458,0.0073,72035.0,72018.0,0.00156]
[1773612496764,0.14403521,72035.0,72019.0,0.043209]
[1773612496966,0.14403521,72035.0,72020.0,0.00156]
[1773612497763,0.14503521,72035.0,72020.0,0.00156]
[1773612498158,0.13673521,72034.0,72021.0,0.00156]
[1773612498468,0.13673521,72034.0,72022.0,0.00156]
[1773612498648,0.0073,72035.0,72005.0,0.0073]
[1773612498649,0.13673521,72029.0,72011.0,0.041653]
[1773612498856,0.13673521,72029.0,72012.0,0.00156]
[1773612499054,0.13673521,72029.0,72012.0,0.043213]
[1773612499765,0.13673521,72029.0,72015.0,0.041651]
[1773612499965,0.041643,72029.0,72012.0,0.043213]
[1773612500163,0.13673521,72034.0,72020.0,0.041648]
[1773612500363,0.13673521,72041.0,72021.0,0.00156]
[1773612500664,0.14403521,72044.0,72022.0,0.1349744]
[1773612500964,0.14403521,72044.0,72027.0,0.041644]
[1773612501560,0.001,72041.0,72027.0,0.041644]
[1773612501957,0.13031618,72041.0,72025.0,0.041645]
[1773612502269,0.13031618,72041.0,72026.0,0.041645]
[1773612502766,0.13031618,72041.0,72029.0,0.041643]
[1773612502967,0.001,72041.0,72030.0,0.00156]
[1773612503165,0.13031618,72041.0,72030.0,0.00156]
[1773612503368,0.12931618,72040.0,72031.0,0.00156]
[1773612503672,0.12931618,72040.0,72032.0,0.00156]
[1773612503870,0.12931618,72040.0,72033.0,0.00156]
[1773612504170,0.12931618,72040.0,72034.0,0.00156]
[1773612504760,0.12931618,72040.0,72006.0,0.041656]
[1773612504761,0.12931618,72036.0,72009.0,0.12873243]
[1773612504955,0.12931618,72036.0,72010.0,0.00156]
[1773612505162,0.12931618,72044.0,72003.0,0.12873243]
[1773612505362,0.12931618,72044.0,72004.0,0.00156]
[1773612505564,0.00156,72045.0,72001.0,0.00459497]
[1773612505565,0.12931618,72025.0,72001.0,0.00459497]
[1773612505760,0.12931618,72025.0,71985.0,0.12545151]
[1773612505761,0.12931618,72015.0,71986.0,0.12873243]
[1773612506073,0.12931618,72015.0,71981.0,0.00069463]
[1773612506074,0.12931618,72015.0,71999.0,0.04166]
[1773612506666,0.12931618,72015.0,72000.0,0.00156]
[1773612507165,0.0073,72028.0,72000.0,0.13029243]
[1773612507166,0.12931618,72021.0,72000.0,0.13029243]
[1773612507565,0.048944,72028.0,72009.0,0.041654]
[1773612507880,0.0073,72028.0,72010.0,0.00156]
[1773612508174,0.0073,72028.0,72011.0,0.12873243]
[1773612508964,0.0073,72028.0,72019.0,0.041648]
[1773612509174,0.0073,72028.0,72020.0,0.00156]
[1773612509664,0.0073,72028.0,72019.0,0.041649]
[1773612509864,0.0073,72028.0,72020.0,0.00156]
[1773612510060,0.0073,72028.0,72020.0,0.043208]
[1773612510266,0.12931618,72036.0,72021.0,0.041647]
[1773612510574,0.12931618,72036.0,72020.0,0.00156]
[1773612510962,0.12931618,72036.0,72020.0,0.043208]
[1773612511471,0.12931618,72034.0,72020.0,0.00156]
[1773612511673,0.12931618,72034.0,72021.0,0.041647]
[1773612512273,0.041638,72038.0,72020.0,0.00156]
[1773612512274,0.12931618,72044.0,72020.0,0.00886]
[1773612512580,0.12931618,72040.0,72020.0,0.00886]
[1773612512773,0.12931618,72038.0,72024.0,0.041646]
[1773612513172,0.12931618,72038.0,72025.0,0.041645]
[1773612513377,0.12931618,72038.0,72024.0,0.041646]
[1773612513580,0.12931618,72038.0,72025.0,0.041645]
[1773612515772,0.20300574,72037.0,72025.0,0.041645]
[1773612516076,0.12931618,72036.0,72024.0,0.0073]
[1773612516883,0.12931618,72036.0,72024.0,0.048946]
[1773612517879,0.12931618,72036.0,72025.0,0.00156]
[1773612518184,0.12931618,72034.0,72026.0,0.00156]
[1773612518771,0.12931618,72030.0,72026.0,0.00156]
[1773612518972,0.17095918,72030.0,72017.0,0.00156]
[1773612519271,0.17095518,72036.0,72019.0,0.041649]
[1773612519471,0.20322575,72035.0,72019.0,0.041649]
[1773612519671,0.20322575,72034.0,72019.0,0.041649]
[1773612519872,0.12931618,72034.0,72018.0,0.00156]
[1773612520074,0.20323223,72033.0,72018.0,0.00156]
[1773612520275,0.17095818,72032.0,72018.0,0.00156]
[1773612520480,0.041644,72029.0,72005.0,0.12873243]
[1773612520681,0.12931618,72028.0,72006.0,0.00156]
[1773612520885,0.12931618,72033.0,72007.0,0.12873243]
[1773612521383,0.17095718,72033.0,72019.0,0.041649]
[1773612521584,0.17095718,72033.0,72020.0,0.00156]
[1773612522179,0.12931618,72032.0,72020.0,0.00156]
[1773612522586,0.17095818,72032.0,72020.0,0.00156]
[1773612523288,0.12931618,72038.0,72023.0,0.041646]
[1773612523477,0.33262181,72037.0,72023.0,0.041646]
[1773612523677,0.20330563,72036.0,72020.0,0.00156]
[1773612523880,0.20330563,72035.0,72022.0,0.041647]
[1773612524087,0.17095518,72036.0,72021.0,0.041648]
[1773612524284,0.17095118,72043.0,72027.0,0.041644]
[1773612524478,0.12931618,72041.0,72028.0,0.00156]
[1773612524679,0.20332263,72040.0,72029.0,0.00156]
[1773612524879,0.33263881,72039.0,72029.0,0.00156]
[1773612525075,0.20332263,72038.0,72029.0,0.00156]
[1773612525291,0.15463263,72037.0,72029.0,0.00156]
[1773612525490,0.12931618,72039.0,72029.0,0.00156]
[1773612526091,0.61618449,72091.0,72029.0,0.00156]
[1773612526092,0.12931618,72046.0,72030.0,0.041642]
[1773612526385,0.12931618,72044.0,72030.0,0.041642]
[1773612526788,0.041635,72044.0,72029.0,0.043203]
[1773612526980,0.12931618,72043.0,72029.0,0.043203]
[1773612527383,0.12931618,72043.0,72030.0,0.041642]
[1773612527580,0.12931618,72043.0,72029.0,0.00156]
[1773612528189,0.12931618,72043.0,72032.0,0.041641]
[1773612528389,0.12931618,72043.0,72030.0,0.041642]
[1773612528591,0.17095118,72043.0,72029.0,0.00156]
[1773612528776,0.12931618,72039.0,72030.0,0.00156]
[1773612528979,0.12931618,72039.0,72031.0,0.00156]
[1773612529180,0.12931618,72039.0,72032.0,0.00156]
[1773612529793,0.12931618,72038.0,72014.0,0.12873243]
[1773612530091,0.12931618,72038.0,72027.0,0.041644]
[1773612530294,0.12931618,72042.0,72028.0,0.00156]
[1773612530593,0.12931618,72048.0,72029.0,0.13029243]
[1773612530788,0.12931618,72048.0,72030.0,0.00156]
[1773612530990,0.12931618,72048.0,72032.0,0.041641]
[1773612531385,0.12931618,72048.0,72030.0,0.00156]
[1773612531386,0.12931618,72048.0,72030.0,0.043202]
[1773612531988,0.041634,72045.0,72031.0,0.041642]
[1773612532696,0.041634,72045.0,72032.0,0.00156]
[1773612533594,0.164716,72045.0,72032.0,0.00156]
[1773612534283,0.123082,72044.0,72032.0,0.00156]
[1773612534483,0.164717,72044.0,72032.0,0.00156]
[1773612535596,0.041635,72044.0,72032.0,0.00156]
[1773612535798,0.041634,72045.0,72032.0,0.00156]
[1773612535997,0.041635,72044.0,72032.0,0.00156]
[1773612536388,0.041635,72043.0,72032.0,0.00156]
[1773612536588,0.123082,72044.0,72032.0,0.00156]
[1773612536890,0.164717,72044.0,72032.0,0.00156]
[1773612537696,0.123082,72042.0,72032.0,0.00156]
[1773612539795,0.123082,72033.0,72016.0,0.2474468]
[1773612540000,0.123082,72033.0,72017.0,0.00156]
[1773612540199,0.123082,72029.0,72018.0,0.00156]
[1773612540504,0.123082,72028.0,72017.0,0.00156]
[1773612540791,0.123082,72013.0,71996.0,0.2474468]
[1773612540987,0.123082,72013.0,72003.0,0.041658]
[1773612541189,0.123082,72025.0,72016.0,0.001]
[1773612541388,0.123082,72022.0,72012.0,0.00156]
[1773612541784,0.16473,72022.0,72012.0,0.00156]
[1773612542510,0.123082,72039.0,72012.0,0.043213]
[1773612542796,0.123082,72040.0,72012.0,0.043213]
[1773612542992,0.123082,72029.0,72012.0,0.00156]
[1773612543199,0.124642,72046.0,72020.0,0.00156]
[1773612543387,0.123082,72044.0,72021.0,0.00156]
[1773612543592,0.124642,72044.0,72021.0,0.00156]
[1773612543792,0.123082,72035.0,72021.0,0.00156]